bitfinex/quotes_BTCUSD_20260103
["timestamp","ask_amount","ask_price","bid_price","bid_amount"]
[1767437415161,0.01113598,89799.0,89795.0,0.01113647]
[1767437417234,0.01113598,89799.0,89794.0,0.0111366]
[1767437418672,0.01113598,89799.0,89795.0,0.0372107]
[1767437419287,0.0111361,89798.0,89795.0,0.0372107]
[1767437419657,0.01113598,89799.0,89795.0,0.0372107]
[1767437420510,0.01113598,89799.0,89794.0,0.0111366]
[1767437420878,0.01113598,89799.0,89795.0,0.01113647]
[1767437421081,0.01113585,89800.0,89795.0,0.01113647]
[1767437421417,0.01113635,89796.0,89792.0,0.12253635]
[1767437421599,0.05568147,89797.0,89792.0,0.12253635]
[1767437422377,0.01113622,89797.0,89793.0,0.01113672]
[1767437423631,0.0111361,89798.0,89793.0,0.01113672]
[1767437425016,0.01113622,89797.0,89792.0,0.12253635]
[1767437425440,0.01113635,89796.0,89792.0,0.11139951]
[1767437425648,0.01113635,89796.0,89792.0,0.12253635]
[1767437426510,0.01113647,89795.0,89792.0,0.11139951]
[1767437430837,0.01113635,89796.0,89792.0,0.11139951]
[1767437432474,0.01113647,89795.0,89792.0,0.11139951]
[1767437435698,0.01113635,89796.0,89795.0,0.000999]
[1767437436128,0.0111361,89798.0,89795.0,0.000999]
[1767437436329,0.0111361,89798.0,89794.0,0.0111366]
[1767437436678,0.06681617,89799.0,89794.0,0.0111366]
[1767437436879,0.01113598,89799.0,89795.0,0.01113647]
[1767437438256,0.01113585,89800.0,89799.0,0.000999]
[1767437438402,0.01113585,89800.0,89795.0,0.01113647]
[1767437438607,0.01113598,89799.0,89794.0,0.0111366]
[1767437439294,0.0111361,89798.0,89794.0,0.0111366]
[1767437439649,0.0101371,89798.0,89794.0,0.0111366]
[1767437441143,0.01113598,89799.0,89794.0,0.0111366]
[1767437441867,0.01113585,89800.0,89795.0,0.01113647]
[1767437442938,0.01113585,89800.0,89796.0,0.01113635]
[1767437443141,0.06681493,89801.0,89796.0,0.01113635]
[1767437444128,0.01113585,89800.0,89795.0,0.01113647]
[1767437444969,0.01113585,89800.0,89796.0,0.01113635]
[1767437445388,0.01113573,89801.0,89797.0,0.01113622]
[1767437445589,0.01113573,89801.0,89796.0,0.01113635]
[1767437446411,0.08902332,89801.0,89796.0,0.01113635]
[1767437446631,0.000999,89796.0,89794.0,0.0111366]
[1767437447263,0.0111361,89798.0,89794.0,0.0111366]
[1767437448095,0.01113598,89799.0,89795.0,0.01113647]
[1767437448731,0.01113598,89799.0,89794.0,0.0111366]
[1767437450022,0.000999,89794.0,89792.0,0.11139951]
[1767437450454,0.06681662,89798.0,89792.0,0.11139951]
[1767437450798,0.01113635,89796.0,89792.0,0.12253635]
[1767437451017,0.01113635,89796.0,89792.0,0.11139951]
[1767437451422,0.01113635,89796.0,89792.0,0.11040051]
[1767437451949,0.01113647,89795.0,89792.0,0.11040051]
[1767437452334,0.01113635,89796.0,89792.0,0.12153735]
[1767437454164,0.01113635,89796.0,89792.0,0.11040051]
[1767437454756,0.01113647,89795.0,89792.0,0.11040051]
[1767437459657,0.06681934,89795.0,89792.0,0.11040051]
[1767437460059,0.05568348,89794.0,89792.0,0.11040051]
[1767437460264,0.05568588,89790.0,89785.0,0.0222966]
[1767437460413,0.01113722,89789.0,89785.0,0.03343431]
[1767437460609,0.01113684,89792.0,89789.0,0.000999]
[1767437461057,0.14930027,89791.0,89789.0,0.01116]
[1767437461450,0.08247785,89784.0,89780.0,0.01113833]
[1767437461651,0.08247785,89782.0,89778.0,0.01113858]
[1767437462192,0.09361569,89784.0,89780.0,0.01113833]
[1767437464133,0.01113771,89785.0,89780.0,0.01113833]
[1767437464532,0.09361556,89785.0,89781.0,0.01113821]
[1767437465235,0.09361556,89785.0,89780.0,0.01113833]
[1767437465739,0.08247785,89785.0,89781.0,0.01113821]
[1767437466913,0.08247785,89785.0,89782.0,0.01113809]
[1767437467954,0.06682524,89787.0,89778.0,0.01113858]
[1767437467955,0.01113684,89792.0,89787.0,0.01113746]
[1767437468363,0.09361469,89792.0,89787.0,0.01113746]
[1767437470568,0.09361469,89792.0,89788.0,0.01113734]
[1767437471292,0.06682075,89793.0,89788.0,0.01113734]
[1767437471293,0.01113672,89793.0,89788.0,0.01113734]
[1767437471499,0.01113858,89795.0,89792.0,0.06682064]
[1767437471904,0.08247785,89797.0,89793.0,0.06681991]
[1767437472107,0.09361407,89797.0,89793.0,0.01113672]
[1767437472308,0.000999,89793.0,89791.0,0.01113697]
[1767437472448,0.01113647,89795.0,89790.0,0.01113709]
[1767437472645,0.0936142,89796.0,89791.0,0.01113697]
[1767437472847,0.09361432,89795.0,89791.0,0.01113697]
[1767437473607,0.09361432,89795.0,89790.0,0.01113709]
[1767437473826,0.01113635,89796.0,89791.0,0.01113697]
[1767437473992,0.0936142,89796.0,89791.0,0.01113697]
[1767437474519,0.01113647,89795.0,89791.0,0.01113697]
[1767437474666,0.01113647,89795.0,89790.0,0.01113709]
[1767437474865,0.0111366,89794.0,89790.0,0.01113709]
[1767437477073,0.01113672,89793.0,89787.0,0.000679]
[1767437477283,0.08247785,89789.0,89787.0,0.000679]
[1767437478436,0.09361507,89789.0,89785.0,0.01116]
[1767437478642,0.01113722,89789.0,89785.0,0.01116]
[1767437478799,0.01113722,89789.0,89785.0,0.02229771]
[1767437479002,0.01113709,89790.0,89785.0,0.02229771]
[1767437479517,0.01113722,89789.0,89785.0,0.02229771]
[1767437481321,0.01113697,89791.0,89786.0,0.01113759]
[1767437481511,0.01113697,89791.0,89789.0,0.000679]
[1767437481888,0.01113697,89791.0,89786.0,0.01113759]
[1767437482299,0.06682152,89792.0,89787.0,0.01113746]
[1767437483780,0.01113697,89791.0,89787.0,0.01113746]
[1767437485992,0.01113697,89791.0,89786.0,0.01113759]
[1767437487134,0.09361482,89791.0,89786.0,0.01113759]
[1767437487756,0.08247785,89791.0,89787.0,0.01113746]
[1767437487965,0.08247785,89791.0,89788.0,0.01113734]
[1767437488612,0.08247785,89793.0,89791.0,0.000679]
[1767437489167,0.08247785,89793.0,89789.0,0.01113722]
[1767437490148,0.00032,89789.0,89788.0,0.01113734]
[1767437490295,0.09361457,89793.0,89788.0,0.01113734]
[1767437490900,0.09476135,89792.0,89788.0,0.01113734]
[1767437491523,0.08362451,89792.0,89789.0,0.01113722]
[1767437494524,0.09476111,89794.0,89790.0,0.01113709]
[1767437495024,0.08362451,89794.0,89790.0,0.01113709]
[1767437495206,0.08362451,89800.0,89798.0,0.0111361]
[1767437495406,0.08362451,89800.0,89796.0,0.01113635]
[1767437495927,0.01113573,89801.0,89796.0,0.01113635]
[1767437496136,0.09476024,89801.0,89796.0,0.01113635]
[1767437496720,0.09476024,89801.0,89797.0,0.01113622]
[1767437499635,0.08362451,89801.0,89797.0,0.01113622]
[1767437499951,0.00032,89797.0,89795.0,0.01113647]
[1767437500104,0.09476024,89801.0,89795.0,0.01113647]
[1767437500995,0.08362451,89799.0,89795.0,0.01113647]
[1767437502203,0.09476049,89799.0,89795.0,0.01113647]
[1767437502532,0.08362451,89799.0,89795.0,0.01113647]
[1767437504131,0.08362451,89799.0,89796.0,0.01113635]
[1767437505768,0.08294251,89799.0,89796.0,0.01113635]
[1767437505963,0.00032,89796.0,89795.0,0.01113647]
[1767437506342,0.09407849,89799.0,89795.0,0.01113647]
[1767437509162,0.01113585,89800.0,89795.0,0.01113647]
[1767437512224,0.06681414,89802.0,89797.0,0.01113622]
[1767437512440,0.08362451,89804.0,89797.0,0.01113622]
[1767437512603,0.04390083,89803.0,89800.0,0.01113585]
[1767437512819,0.01116,89803.0,89800.0,0.01113585]
[1767437517581,0.01116,89803.0,89799.0,0.0668155]
[1767437517582,0.01116,89803.0,89799.0,0.01113598]
[1767437517737,0.01116,89803.0,89800.0,0.01113585]
[1767437518976,0.01113523,89805.0,89800.0,0.01113585]
[1767437519397,0.01113536,89804.0,89799.0,0.01113598]
[1767437520196,0.01113536,89804.0,89799.0,0.01013698]
[1767437521347,0.01113536,89804.0,89800.0,0.01113585]
[1767437521591,0.01113523,89805.0,89801.0,0.01113573]
[1767437521803,0.01113523,89805.0,89800.0,0.01113585]
[1767437522220,0.02229511,89806.0,89801.0,0.01113573]
[1767437524340,0.010161,89806.0,89802.0,0.0111356]
[1767437524625,0.02129611,89806.0,89801.0,0.01113573]
[1767437524915,0.01113511,89806.0,89801.0,0.01113573]
[1767437525485,0.01113511,89806.0,89802.0,0.0111356]
[1767437525875,0.01113498,89807.0,89801.0,0.01113573]
[1767437526327,0.01113511,89806.0,89801.0,0.01113573]
[1767437526694,0.01113498,89807.0,89802.0,0.0111356]
[1767437527148,0.01113511,89806.0,89801.0,0.01113573]
[1767437527497,0.01113498,89807.0,89802.0,0.0111356]
[1767437527908,0.01113511,89806.0,89801.0,0.01113573]
[1767437528382,0.01113498,89807.0,89802.0,0.0111356]
[1767437528585,0.01113511,89806.0,89801.0,0.01113573]
[1767437528807,0.01116,89810.0,89806.0,0.01113511]
[1767437529033,6.9e-07,89814.0,89807.0,0.06680992]
[1767437529206,0.01113424,89813.0,89808.0,0.01113486]
[1767437529383,0.01113436,89812.0,89808.0,0.01113486]
[1767437529585,0.01113436,89812.0,89807.0,0.01113498]
[1767437529996,0.01113436,89812.0,89806.0,0.01013611]
[1767437529997,0.01113449,89811.0,89806.0,0.01013611]
[1767437530204,0.01113449,89811.0,89807.0,0.01113498]
[1767437530766,0.01113436,89812.0,89808.0,0.01113486]
[1767437531905,0.01113449,89811.0,89807.0,0.01113498]
[1767437532380,0.01113436,89812.0,89807.0,0.01113498]
[1767437532932,6.9e-07,89814.0,89809.0,0.01113474]
[1767437533141,6.9e-07,89814.0,89811.0,0.01113449]
[1767437534998,0.05566729,89820.0,89813.0,0.01113424]
[1767437535151,0.01113374,89817.0,89811.0,0.01113449]
[1767437535356,0.01113374,89817.0,89812.0,0.01113436]
[1767437535556,0.01113374,89817.0,89811.0,0.01113449]
[1767437535557,0.01113387,89816.0,89811.0,0.01113449]
[1767437535753,0.04454594,89823.0,89812.0,0.01113436]
[1767437535996,0.01116,89822.0,89818.0,0.01113362]
[1767437536170,0.01116,89822.0,89817.0,0.05566836]
[1767437536171,0.02229312,89822.0,89817.0,0.01113374]
[1767437536350,0.01116,89822.0,89818.0,0.01113362]
[1767437536558,0.01116,89822.0,89819.0,0.0111335]
[1767437536816,0.01116,89822.0,89818.0,0.01113362]
[1767437537031,0.011133,89823.0,89819.0,0.0111335]
[1767437537235,0.01116,89821.0,89819.0,0.0111335]
[1767437537378,0.01116,89820.0,89819.0,0.0111335]
[1767437537584,0.01116,89820.0,89818.0,0.01113362]
[1767437539010,0.01116,89820.0,89819.0,0.08435492]
[1767437540924,0.010161,89820.0,89818.0,0.06680119]
[1767437541549,0.01113288,89824.0,89820.0,0.01113337]
[1767437541826,0.01112,89823.0,89820.0,0.01113337]
[1767437542978,0.01113275,89825.0,89820.0,0.01113337]
[1767437543184,0.01112,89822.0,89820.0,0.01113337]
[1767437543781,0.000999,89820.0,89816.0,0.01113387]
[1767437544005,0.01113362,89818.0,89813.0,0.01113424]
[1767437544205,0.06680659,89812.0,89806.0,0.00049471]
[1767437544356,0.05567473,89808.0,89806.0,1e-08]
[1767437544557,0.09517434,89807.0,89806.0,1e-08]
[1767437546655,0.0111361,89798.0,89791.0,0.12253648]
[1767437546894,0.01113622,89797.0,89791.0,0.12253648]
[1767437547101,0.01113635,89796.0,89791.0,0.11139951]
[1767437547305,0.01113647,89795.0,89791.0,0.01113697]
[1767437547514,0.02229635,89796.0,89791.0,0.01113697]
[1767437547728,0.02229635,89796.0,89792.0,0.01113684]
[1767437548150,0.01116,89796.0,89792.0,0.01113684]
[1767437548481,0.01116,89796.0,89793.0,0.01113672]
[1767437549825,0.00250231,89796.0,89793.0,0.01113672]
[1767437550411,0.0928644,89804.0,89799.0,0.01113598]
[1767437550617,0.10402452,89803.0,89798.0,0.0111361]
[1767437550819,0.01113573,89801.0,89796.0,0.0668181]
[1767437551048,0.01113573,89801.0,89797.0,0.01113622]
[1767437551238,0.0111356,89802.0,89797.0,0.01113622]
[1767437551605,0.10402452,89803.0,89798.0,0.0111361]
[1767437552404,0.09286452,89803.0,89799.0,0.01113598]
[1767437552606,0.01116,89802.0,89799.0,0.01113598]
[1767437552806,0.01116,89802.0,89798.0,0.0111361]
[1767437552989,0.09286452,89803.0,89798.0,0.0111361]
[1767437552990,0.01116,89801.0,89798.0,0.0111361]
[1767437556031,0.01116,89801.0,89799.0,0.01113598]
[1767437556232,0.01116,89801.0,89798.0,0.0111361]
[1767437556710,0.000999,89798.0,89796.0,0.01113635]
[1767437557029,0.01116,89801.0,89796.0,0.01113635]
[1767437557228,0.02229573,89801.0,89797.0,0.01113622]
[1767437558518,0.01116,89801.0,89797.0,0.01113622]
[1767437558915,0.01116,89801.0,89798.0,0.0111361]
[1767437561575,0.01116,89801.0,89799.0,0.0556795]
[1767437562170,0.01116,89801.0,89798.0,0.0111361]
[1767437564277,0.01113548,89803.0,89798.0,0.0111361]
[1767437564482,0.01116,89802.0,89798.0,0.0111361]
[1767437564638,0.01116,89802.0,89799.0,0.01113598]
[1767437564975,0.000999,89799.0,89798.0,0.0111361]
[1767437565351,0.01116,89802.0,89798.0,0.0111361]
[1767437565352,0.01116,89802.0,89799.0,0.01113598]
[1767437576139,0.01116,89802.0,89799.0,0.06681552]
[1767437576317,0.01116,89802.0,89800.0,0.05567891]
[1767437576514,0.01111546,89802.0,89800.0,0.05567891]
[1767437576773,0.01111546,89802.0,89799.0,0.06681552]
[1767437577941,0.01116,89803.0,89800.0,0.01113585]
[1767437583105,0.06681106,89806.0,89800.0,0.01113585]
[1767437583106,0.01116,89806.0,89802.0,0.0111356]
[1767437583462,0.000999,89802.0,89801.0,0.01113573]
[1767437583604,0.000999,89802.0,89800.0,0.01113585]
[1767437584174,0.01113536,89804.0,89800.0,0.01113585]
[1767437584364,0.01113536,89804.0,89799.0,0.01113598]
[1767437584948,0.01113548,89803.0,89799.0,0.01113598]
[1767437585152,0.01113536,89804.0,89799.0,0.01113598]
[1767437585920,0.01113548,89803.0,89798.0,0.0111361]
[1767437586119,0.01113548,89803.0,89799.0,0.01113598]
[1767437586546,0.01113536,89804.0,89799.0,0.01113598]
[1767437586716,0.01113548,89803.0,89799.0,0.01113598]
[1767437587269,0.01113548,89803.0,89799.0,0.01013698]
[1767437587867,0.01113536,89804.0,89800.0,0.01113585]
[1767437588098,0.01113548,89803.0,89799.0,0.01013698]
[1767437588938,0.01113536,89804.0,89799.0,0.01013698]
[1767437589866,0.01113548,89803.0,89799.0,0.01013698]
[1767437590717,0.01113536,89804.0,89799.0,0.01013698]
[1767437592102,0.01113536,89804.0,89800.0,0.01113585]
[1767437592971,0.01113548,89803.0,89799.0,0.01013698]
[1767437593269,0.01113548,89803.0,89798.0,0.0111361]
[1767437593572,0.0111356,89802.0,89798.0,0.0111361]
[1767437594878,0.01113548,89803.0,89798.0,0.0111361]
[1767437594879,0.01113548,89803.0,89799.0,0.01113598]
[1767437595759,0.01113536,89804.0,89799.0,0.01113598]
[1767437595967,0.01113536,89804.0,89800.0,0.01113585]
[1767437596885,0.01113536,89804.0,89799.0,0.01113598]
[1767437597202,0.01113548,89803.0,89799.0,0.01113598]
[1767437597607,0.01113548,89803.0,89798.0,0.0111361]
[1767437599892,0.01113548,89803.0,89799.0,0.01113598]
[1767437601267,0.0111356,89802.0,89798.0,0.0111361]
[1767437601602,0.01113548,89803.0,89798.0,0.0111361]
[1767437604351,0.01113548,89803.0,89799.0,0.01113598]
[1767437604825,0.01113536,89804.0,89799.0,0.01113598]
[1767437605397,0.01113548,89803.0,89798.0,0.0111361]
[1767437605749,0.01113548,89803.0,89799.0,0.01113598]
[1767437606316,0.01113536,89804.0,89799.0,0.01113598]
[1767437606676,0.01113548,89803.0,89799.0,0.01113598]
[1767437607100,0.01113536,89804.0,89799.0,0.01113598]
[1767437607736,0.01113548,89803.0,89799.0,0.01113598]
[1767437609075,0.01113536,89804.0,89803.0,0.000999]
[1767437609292,0.01113548,89803.0,89798.0,0.06681627]
[1767437609421,0.01113548,89803.0,89799.0,0.01113598]
[1767437609622,0.01113536,89804.0,89799.0,0.01113598]
[1767437610068,0.06681178,89805.0,89800.0,0.01113585]
[1767437610639,0.01113536,89804.0,89800.0,0.01113585]
[1767437611008,0.01113536,89804.0,89799.0,0.01113598]
[1767437611375,0.01113536,89804.0,89800.0,0.01113585]
[1767437612231,0.01113536,89804.0,89799.0,0.01113598]
[1767437612393,0.01113536,89804.0,89800.0,0.01113585]
[1767437612944,0.01113548,89803.0,89798.0,0.06681627]
[1767437613162,0.01113548,89803.0,89799.0,0.01113598]
[1767437613354,0.01113511,89806.0,89800.0,0.01113585]
[1767437613559,0.01113511,89806.0,89803.0,0.000999]
[1767437613758,0.01113511,89806.0,89800.0,0.01113585]
[1767437614254,0.01113511,89806.0,89800.0,0.06681475]
[1767437614492,0.01113511,89806.0,89801.0,0.01113573]
[1767437615293,0.01113523,89805.0,89800.0,0.01113585]
[1767437615439,0.01113536,89804.0,89800.0,0.01113585]
[1767437616591,0.01113548,89803.0,89799.0,0.01113598]
[1767437619505,0.01113536,89804.0,89799.0,0.01113598]
[1767437619867,0.02229498,89807.0,89801.0,0.01113573]
[1767437620087,0.01113523,89805.0,89801.0,0.01113573]
[1767437623147,0.01113486,89808.0,89802.0,0.0111356]
[1767437623306,0.01113511,89806.0,89805.0,0.000999]
[1767437623508,0.01113536,89804.0,89800.0,0.01113585]
[1767437623844,0.0668126,89804.0,89798.0,0.0111361]
[1767437624147,0.01113548,89803.0,89799.0,0.01113598]
[1767437624449,0.0111356,89802.0,89796.0,0.01113635]
[1767437624747,0.01113585,89800.0,89795.0,0.01113647]
[1767437629042,0.01113548,89803.0,89800.0,0.000999]
[1767437629246,0.01113536,89804.0,89800.0,0.000999]
[1767437629666,0.01113536,89804.0,89799.0,0.01113598]
[1767437629899,0.01113523,89805.0,89800.0,0.01113585]
[1767437630067,0.01113523,89805.0,89801.0,0.01113573]
[1767437630270,0.01113536,89804.0,89799.0,0.01113598]
[1767437631815,0.01113548,89803.0,89798.0,0.06681615]
[1767437632939,0.0111356,89802.0,89798.0,0.0111361]
[1767437633434,0.01113548,89803.0,89798.0,0.0111361]
[1767437633781,0.01113548,89803.0,89798.0,0.00750546]
[1767437635228,0.01113548,89803.0,89799.0,0.01113598]
[1767437635438,0.0111356,89802.0,89798.0,0.00750546]
[1767437637440,0.01113548,89803.0,89798.0,0.00750546]
[1767437638149,0.01113536,89804.0,89799.0,0.06681588]
[1767437639859,0.01113536,89804.0,89800.0,0.01113585]
[1767437641379,0.01113548,89803.0,89799.0,0.01113598]
[1767437641519,0.01113548,89803.0,89800.0,4e-05]
[1767437642943,0.01113536,89804.0,89800.0,0.01117585]
[1767437643687,0.01113536,89804.0,89800.0,4e-05]
[1767437645149,0.06681146,89805.0,89800.0,0.01117585]
[1767437646542,0.01113511,89806.0,89801.0,0.01113573]
[1767437646670,0.01113511,89806.0,89802.0,0.0111356]
[1767437646873,0.01113486,89808.0,89802.0,0.06681306]
[1767437647140,0.01113486,89808.0,89807.0,0.11139951]
[1767437647538,0.01113474,89809.0,89807.0,0.11139951]
[1767437649174,0.02229461,89810.0,89807.0,0.11139951]
[1767437650002,0.02229461,89810.0,89807.0,0.11040051]
[1767437650542,0.0779681,89810.0,89807.0,0.11040051]
[1767437652301,0.05567432,89809.0,89807.0,0.11040051]
[1767437655318,0.05567432,89809.0,89807.0,0.09267555]
[1767437655519,0.01113536,89804.0,89800.0,4e-05]
[1767437655722,0.06681253,89804.0,89800.0,4e-05]
[1767437656842,0.01113548,89803.0,89800.0,4e-05]
[1767437657050,0.06681332,89803.0,89800.0,4e-05]
[1767437658306,0.01113548,89803.0,89800.0,4e-05]
[1767437659111,0.06681253,89804.0,89800.0,4e-05]
[1767437660578,0.01113548,89803.0,89800.0,4e-05]
[1767437663790,0.06681343,89803.0,89800.0,4e-05]
[1767437664802,0.05567842,89802.0,89800.0,4e-05]
[1767437670247,0.05467942,89802.0,89800.0,4e-05]
[1767437671245,0.01113548,89803.0,89800.0,4e-05]
[1767437671550,0.06681337,89803.0,89800.0,4e-05]
[1767437672953,0.01113585,89800.0,89797.0,0.01116]
[1767437674117,0.066814,89802.0,89797.0,0.01116]
[1767437674317,0.01109573,89801.0,89797.0,0.02229622]
[1767437675157,0.01113548,89803.0,89798.0,0.0111361]
[1767437675709,0.0111356,89802.0,89798.0,0.0111361]
[1767437678369,0.01113573,89801.0,89797.0,0.02229622]
[1767437680496,0.0111356,89802.0,89798.0,0.0111361]
[1767437684272,0.01113573,89801.0,89797.0,0.02229622]
[1767437686175,0.0111356,89802.0,89797.0,0.02229622]
[1767437686387,0.0111356,89802.0,89798.0,0.0111361]
[1767437689186,0.0111356,89802.0,89797.0,0.02229622]
[1767437690309,0.01113573,89801.0,89797.0,0.01116]
[1767437690956,0.01113573,89801.0,89797.0,0.02229622]
[1767437691609,0.0111356,89802.0,89798.0,0.0111361]
[1767437693617,0.01113573,89801.0,89797.0,0.02229622]
[1767437693815,0.0111356,89802.0,89797.0,0.02229622]
[1767437694118,0.0111356,89802.0,89798.0,0.0111361]
[1767437694533,0.06681326,89803.0,89797.0,0.07797698]
[1767437696020,0.01113573,89801.0,89797.0,0.01116]
[1767437696839,0.01113573,89801.0,89797.0,0.02229622]
[1767437697044,0.0111356,89802.0,89797.0,0.02229622]
[1767437697822,0.01113573,89801.0,89797.0,0.02229622]
[1767437698024,0.01113585,89800.0,89797.0,0.01116]
[1767437698561,0.01113585,89800.0,89797.0,0.010161]
[1767437701400,0.01113573,89801.0,89797.0,0.02129722]
[1767437701558,0.01113585,89800.0,89797.0,0.010161]
[1767437701760,0.01113573,89801.0,89797.0,0.010161]
[1767437701984,0.0111356,89802.0,89801.0,0.000999]
[1767437702331,0.01113548,89803.0,89799.0,0.01113598]
[1767437702534,0.01113536,89804.0,89800.0,0.01113585]
[1767437702748,0.08926031,89790.0,89777.0,0.11147143]
[1767437702876,0.01113784,89784.0,89774.0,0.0556951]
[1767437703081,0.01113821,89781.0,89776.0,0.01113883]
[1767437703291,0.01113796,89783.0,89776.0,0.01113883]
[1767437703491,0.01113833,89780.0,89776.0,0.01113883]
[1767437703836,0.01113809,89782.0,89778.0,0.01113858]
[1767437703989,0.01113796,89783.0,89782.0,0.000999]
[1767437704424,0.01113771,89785.0,89779.0,0.01113846]
[1767437705217,0.01013871,89785.0,89779.0,0.01113846]
[1767437705451,0.01113784,89784.0,89779.0,0.01113846]
[1767437705971,0.01113796,89783.0,89779.0,0.01113846]
[1767437706189,0.01113796,89783.0,89778.0,0.01113858]
[1767437706359,0.01113796,89783.0,89779.0,0.01113846]
[1767437706780,0.01113796,89783.0,89778.0,0.01113858]
[1767437706952,0.01213746,89779.0,89775.0,0.01112]
[1767437707119,0.01113833,89780.0,89776.0,0.01113883]
[1767437707566,0.01113821,89781.0,89776.0,0.01113883]
[1767437707769,0.01113833,89780.0,89775.0,0.01112]
[1767437707954,0.000999,89776.0,89775.0,0.02225895]
[1767437708288,0.01113821,89781.0,89776.0,0.01113883]
[1767437708658,0.01113809,89782.0,89777.0,0.01113871]
[1767437709307,0.01113784,89784.0,89778.0,0.01113858]
[1767437709668,0.01113796,89783.0,89778.0,0.01113858]
[1767437709869,0.01113796,89783.0,89779.0,0.01113846]
[1767437710070,0.01113784,89784.0,89779.0,0.01113846]
[1767437710931,0.01113771,89785.0,89780.0,0.01113833]
[1767437711715,0.01113796,89783.0,89778.0,0.01113858]
[1767437712095,0.01113796,89783.0,89779.0,0.01113846]
[1767437714152,0.00032437,89782.0,89779.0,0.01113846]
[1767437715301,0.01113771,89785.0,89779.0,0.01113846]
[1767437715459,0.01113784,89784.0,89780.0,0.01113833]
[1767437716200,0.01113784,89784.0,89779.0,0.01113846]
[1767437719008,0.01113796,89783.0,89778.0,0.01113858]
[1767437719613,0.29475168,89790.0,89779.0,0.01113846]
[1767437720433,0.30588877,89790.0,89778.0,0.01113858]
[1767437720640,0.29475168,89790.0,89783.0,0.01113796]
[1767437720841,0.01113697,89791.0,89783.0,0.01013896]
[1767437721253,0.01113697,89791.0,89783.0,0.01113796]
[1767437721445,0.01113697,89791.0,89784.0,0.01113784]
[1767437721648,0.08926031,89791.0,89787.0,0.01113746]
[1767437721905,0.08926031,89791.0,89786.0,0.04454582]
[1767437722110,0.08926031,89791.0,89784.0,0.06682704]
[1767437722431,0.10038031,89792.0,89789.0,0.01113722]
[1767437722833,0.01112,89792.0,89786.0,0.00976702]
[1767437723037,0.08926031,89790.0,89785.0,0.01113771]
[1767437723753,0.1003974,89790.0,89786.0,0.01113759]
[1767437723949,0.08926031,89789.0,89785.0,0.01113771]
[1767437724375,0.10039753,89789.0,89785.0,0.01113771]
[1767437724574,0.10039753,89789.0,89784.0,0.01113784]
[1767437725236,0.10039753,89789.0,89785.0,0.01113771]
[1767437725690,0.01113722,89789.0,89785.0,0.01113771]
[1767437726059,0.10039753,89789.0,89785.0,0.01113771]
[1767437726470,0.01113734,89788.0,89784.0,0.01113784]
[1767437726888,0.01113734,89788.0,89783.0,0.01113796]
[1767437727074,0.10039765,89788.0,89783.0,0.01113796]
[1767437727476,0.10039765,89788.0,89784.0,0.01113784]
[1767437727733,0.10039765,89788.0,89784.0,0.01028205]
[1767437728484,0.08926031,89788.0,89785.0,0.01113771]
[1767437729432,0.08926031,89788.0,89784.0,0.01028205]
[1767437731337,0.10039765,89788.0,89783.0,0.01113796]
[1767437732115,0.01113734,89788.0,89784.0,0.01113784]
[1767437733633,0.01113746,89787.0,89782.0,0.06682811]
[1767437733839,0.01113734,89788.0,89787.0,0.000999]
[1767437734032,0.01113734,89788.0,89783.0,0.01113796]
[1767437738394,0.10154802,89788.0,89783.0,0.01113796]
[1767437738898,0.01113746,89787.0,89783.0,0.01113796]
[1767437739323,0.01113734,89788.0,89784.0,0.01113784]
[1767437739639,0.01113722,89789.0,89785.0,0.01113771]
[1767437739819,0.01113709,89790.0,89785.0,0.01113771]
[1767437741266,0.01113722,89789.0,89785.0,0.01113771]
[1767437742525,0.01113722,89789.0,89784.0,0.01113784]
[1767437742967,0.01113722,89789.0,89785.0,0.01113771]
[1767437744325,0.01113734,89788.0,89784.0,0.01113784]
[1767437745671,0.01113722,89789.0,89785.0,0.01113771]
[1767437746105,0.01113722,89789.0,89784.0,0.01113784]
[1767437746312,0.01113722,89789.0,89784.0,0.10267445]
[1767437747099,0.01113722,89789.0,89784.0,0.01113784]
[1767437748032,0.01113722,89789.0,89784.0,0.01056767]
[1767437748602,0.01113734,89788.0,89783.0,0.01113796]
[1767437749905,0.01113746,89787.0,89783.0,0.01113796]
[1767437750637,0.000999,89783.0,89782.0,0.06682811]
[1767437750840,0.000999,89783.0,89780.0,0.06682957]
[1767437751036,0.01113759,89786.0,89781.0,0.01113821]
[1767437752541,0.01113759,89786.0,89781.0,0.00999833]
[1767437754953,0.000999,89781.0,89780.0,0.01113833]
[1767437755175,0.01113771,89785.0,89780.0,0.01113833]
[1767437756040,0.01113771,89785.0,89781.0,0.01113821]
[1767437756288,0.01113784,89784.0,89780.0,0.01113833]
[1767437756516,0.01113771,89785.0,89780.0,0.01113833]
[1767437758048,0.01113771,89785.0,89781.0,0.01113821]
[1767437760980,0.06682593,89786.0,89782.0,0.01113809]
[1767437761259,0.01113734,89788.0,89784.0,0.01113784]
[1767437761468,0.01113722,89789.0,89784.0,0.01113784]
[1767437761843,0.02229697,89791.0,89785.0,0.01113771]
[1767437762048,0.01113709,89790.0,89786.0,0.01113759]
[1767437762897,0.01113709,89790.0,89785.0,0.01113771]
[1767437763101,0.01113722,89789.0,89784.0,0.01113784]
[1767437763910,0.01113722,89789.0,89785.0,0.01113771]
[1767437765432,0.01113734,89788.0,89784.0,0.01113784]
[1767437765795,0.01113722,89789.0,89785.0,0.01113771]
[1767437767094,0.01113709,89790.0,89785.0,0.01113771]
[1767437769233,0.01113709,89790.0,89786.0,0.01113759]
[1767437772717,0.01113709,89790.0,89784.0,0.10139802]
[1767437772869,0.01116,89794.0,89791.0,0.01113697]
[1767437773033,0.01116,89794.0,89790.0,0.09026018]
[1767437773286,0.01116,89794.0,89789.0,0.05568557]
[1767437773721,0.0222966,89794.0,89790.0,0.01113709]
[1767437774582,0.01116,89794.0,89791.0,0.01113697]
[1767437775466,0.01116,89794.0,89791.0,0.06682169]
[1767437775637,0.01116,89794.0,89791.0,0.01113697]
[1767437778071,0.01116,89794.0,89790.0,0.01113709]
[1767437779481,0.0222966,89794.0,89789.0,0.01113722]
[1767437780181,0.0222966,89794.0,89788.0,0.01113734]
[1767437780182,0.01113672,89793.0,89788.0,0.01113734]
[1767437780384,0.01113672,89793.0,89789.0,0.01113722]
[1767437780887,0.07798001,89794.0,89789.0,0.01113722]
[1767437780888,0.0222966,89794.0,89789.0,0.01113722]
[1767437781388,0.0222966,89794.0,89790.0,0.01113709]
[1767437782607,0.0222966,89794.0,89790.0,0.01056735]
[1767437783727,0.01116,89794.0,89790.0,0.01056735]
[1767437786636,0.01116,89794.0,89791.0,0.01113697]
[1767437786775,0.01116,89794.0,89787.0,0.05568693]
[1767437786776,0.0111356,89802.0,89794.0,0.000999]
[1767437786956,0.01116,89798.0,89797.0,0.01113622]
[1767437787288,0.01113548,89803.0,89798.0,0.0111361]
[1767437787491,0.01116,89802.0,89799.0,0.01113598]
[1767437787712,0.01124004,89802.0,89799.0,0.06681543]
[1767437788015,0.01124004,89802.0,89799.0,0.01113598]
[1767437790084,0.01124004,89802.0,89798.0,0.0111361]